lending/lending_fUSD_20250605
["ID","MTS","AMOUNT","RATE_DAILY","PERIOD"]
[364367646,1749082252811,-2587.6,0.00030136,7]
[364367647,1749082252822,-421.26008027,0.00030136,2]
[364367648,1749082252833,-3487.71,0.00030136,7]
[364367649,1749082252843,-426.17167351,0.00030136,7]
[364367650,1749082252852,-1946.09,0.00030136,7]
[364367651,1749082252862,-480.0,0.00030136,7]
[364367652,1749082252871,-1517.18,0.00030137,2]
[364367653,1749082252882,-150.0,0.00030137,5]
[364367654,1749082252891,-443.11551329,0.00030139,2]
[364367655,1749082252901,-253.18918612,0.00030139,2]
[364367656,1749082252911,-293.01104892,0.00030139,2]
[364367657,1749082252920,-245.38540208,0.00030139,2]
[364367658,1749082252930,-7314.84659317,0.0003014,2]
[364367659,1749082252940,-150.0,0.0003014,2]
[364367660,1749082252950,-13154.35795155,0.00030142,2]
[364367661,1749082252959,-150.0,0.00030149,2]
[364367662,1749082252969,-203.15260228,0.0003015,22]
[364367663,1749082252979,-150.0,0.00030153,2]
[364367664,1749082252989,-150.0,0.00030156,2]
[364367665,1749082252999,-150.0,0.00030163,2]
[364367666,1749082253008,-150.0,0.00030163,2]
[364367667,1749082253018,-2437.02973764,0.00030169,2]
[364367668,1749082253028,-73596.86089519,0.0003017,2]
[364367669,1749082253038,-500.0,0.00030173,5]
[364367670,1749082253047,-502.50205258,0.00030173,5]
[364367671,1749082253056,-156.09169595,0.00030173,5]
[364367672,1749082253066,-500.0,0.00030173,5]
[364367673,1749082253075,-500.0,0.00030173,5]
[364367674,1749082253085,-500.0,0.00030173,5]
[364367675,1749082253095,-500.0,0.00030173,5]
[364367676,1749082253105,-500.0,0.00030173,5]
[364367677,1749082253115,-634.3040869,0.00030173,5]
[364367678,1749082253124,-500.0,0.00030173,5]
[364367679,1749082253134,-500.0,0.00030173,5]
[364367680,1749082253144,-500.0,0.00030173,5]
[364367681,1749082253153,-159.7071537,0.00030173,5]
[364367682,1749082253163,-500.0,0.00030173,5]
[364367683,1749082253173,-500.0,0.00030173,5]
[364367684,1749082253182,-500.0,0.00030173,5]
[364367685,1749082253193,-500.0,0.00030173,5]
[364367686,1749082253203,-500.0,0.00030173,5]
[364367687,1749082253213,-361.70297112,0.00030173,5]
[364367688,1749082253222,-500.0,0.00030173,5]
[364367689,1749082253232,-462.16203915,0.00030173,5]
[364367690,1749082253242,-500.0,0.00030173,5]
[364367691,1749082253252,-500.0,0.00030173,5]
[364367692,1749082253261,-500.0,0.00030173,5]
[364367693,1749082253271,-500.0,0.00030173,5]
[364367694,1749082253280,-13154.35795155,0.00030179,2]
[364367695,1749082253290,-211.0,0.000302,30]
[364367696,1749082253300,-2196.0,0.000302,2]
[364367697,1749082253311,-4079.0,0.000302,2]
[364367698,1749082253321,-155.0,0.000302,2]
[364367699,1749082253331,-7014.0,0.000302,2]
[364367700,1749082253341,-731.17027842,0.00030201,2]
[364367701,1749082253350,-159.35262255,0.00030201,2]
[364367702,1749082253360,-303.76,0.00030203,2]
[364367703,1749082253370,-302.97,0.00030203,2]
[364367704,1749082253381,-13154.35795155,0.00030217,2]
[364367705,1749082253391,-150.0,0.00030219,2]
[364367706,1749082253400,-883.0,0.00030219,2]
[364367707,1749082253410,-1991.091,0.0003022,25]
[364367708,1749082253420,-150.0,0.00030224,2]
[364367709,1749082253430,-150.0,0.00030228,2]
[364367710,1749082253441,-150.0,0.00030244,2]
[364367711,1749082253451,-150.0,0.00030245,2]
[364367712,1749082253461,-150.0,0.0003025,2]
[364367713,1749082253470,-150.0,0.00030251,2]
[364367714,1749082253480,-150.0,0.00030251,2]
[364367715,1749082253490,-13154.35795155,0.00030254,2]
[364367716,1749082253499,-150.0,0.00030264,2]
[364367717,1749082253510,-150.0,0.00030267,2]
[364367718,1749082253519,-150.0,0.00030269,2]
[364367719,1749082253529,-500.0,0.00030273,5]
[364367720,1749082253539,-500.0,0.00030273,5]
[364367721,1749082253549,-500.0,0.00030273,5]
[364367722,1749082253559,-500.0,0.00030273,5]
[364367723,1749082253569,-500.0,0.00030273,5]
[364367724,1749082253579,-500.0,0.00030273,5]
[364367725,1749082253589,-160.95622149,0.00030273,5]
[364367726,1749082253598,-500.0,0.00030273,5]
[364367727,1749082253607,-500.0,0.00030273,5]
[364367728,1749082253617,-500.0,0.00030273,5]
[364367729,1749082253627,-500.0,0.00030273,5]
[364367730,1749082253638,-150.0,0.00030278,2]
[364367731,1749082253648,-150.0,0.00030283,2]
[364367732,1749082253658,-1221.59,0.00030289,7]
[364367733,1749082253668,-1221.59,0.00030289,7]
[364367734,1749082253677,-1221.59,0.00030289,7]
[364367735,1749082253688,-2587.6,0.00030289,7]
[364367736,1749082253698,-2587.6,0.00030289,7]
[364367737,1749082253708,-2587.6,0.00030289,7]
[364367738,1749082253718,-761221.2956524,0.0003029,7]
[364367739,1749082253728,-151.0,0.0003029,7]
[364367740,1749082253739,-151.0,0.0003029,7]
[364367741,1749082253751,-312.437254,0.0003029,7]
[364367742,1749082253760,-312.437254,0.0003029,7]
[364367743,1749082253771,-155.971406,0.0003029,7]
[364367744,1749082253781,-151.0,0.0003029,7]
[364367745,1749082253792,-151.0,0.0003029,7]
[364367746,1749082253802,-151.0,0.0003029,7]
[364367747,1749082253813,-303.522939,0.0003029,7]
[364367748,1749082253823,-151.0,0.0003029,7]
[364367749,1749082253832,-303.522939,0.0003029,7]
[364367750,1749082253842,-151.0,0.0003029,7]
[364367751,1749082253852,-151.0,0.0003029,7]
[364367752,1749082253861,-151.0,0.0003029,7]
[364367753,1749082253871,-210.878838,0.0003029,7]
[364367754,1749082253881,-151.0,0.0003029,7]
[364367755,1749082253890,-151.0,0.0003029,7]
[364367756,1749082253900,-151.0,0.0003029,7]
[364367757,1749082253910,-151.0,0.0003029,7]
[364367758,1749082253920,-151.0,0.0003029,7]
[364367759,1749082253930,-151.0,0.0003029,7]
[364367760,1749082253941,-199.502352,0.0003029,7]
[364367761,1749082253951,-151.0,0.0003029,7]
[364367762,1749082253960,-151.0,0.0003029,7]
[364367763,1749082253969,-275.718108,0.0003029,7]
[364367764,1749082253979,-151.0,0.0003029,7]
[364367765,1749082253988,-275.718108,0.0003029,7]
[364367766,1749082253998,-151.0,0.0003029,7]
[364367767,1749082254008,-151.0,0.0003029,7]
[364367768,1749082254018,-151.0,0.0003029,7]
[364367769,1749082254027,-341.351757,0.0003029,7]
[364367770,1749082254036,-214.920386,0.0003029,7]
[364367771,1749082254046,-151.0,0.0003029,7]
[364367772,1749082254056,-341.351757,0.0003029,7]
[364367773,1749082254065,-151.0,0.0003029,7]
[364367774,1749082254075,-151.0,0.0003029,7]
[364367775,1749082254084,-151.0,0.0003029,7]
[364367776,1749082254093,-151.0,0.0003029,7]
[364367777,1749082254103,-151.0,0.0003029,7]
[364367778,1749082254112,-1502.368017,0.0003029,7]
[364367779,1749082254122,-151.0,0.0003029,7]
[364367780,1749082254131,-151.0,0.0003029,7]
[364367781,1749082254141,-151.0,0.0003029,7]
[364367782,1749082254150,-1502.368017,0.0003029,7]
[364367783,1749082254160,-151.0,0.0003029,7]
[364367784,1749082254169,-151.0,0.0003029,7]
[364367785,1749082254179,-151.232603,0.0003029,7]
[364367786,1749082254190,-151.0,0.0003029,7]
[364367787,1749082254200,-151.0,0.0003029,7]
[364367788,1749082254210,-151.0,0.0003029,7]
[364367789,1749082254219,-313.980219,0.0003029,7]
[364367790,1749082254230,-151.0,0.0003029,7]
[364367791,1749082254240,-313.980219,0.0003029,7]
[364367792,1749082254250,-151.0,0.0003029,7]
[364367793,1749082254259,-151.0,0.0003029,7]
[364367794,1749082254268,-151.0,0.0003029,7]
[364367795,1749082254278,-151.0,0.0003029,7]
[364367796,1749082254288,-13154.35795155,0.00030291,2]
[364367797,1749082254299,-2587.6,0.00030299,7]
[364367798,1749082254309,-300.0,0.000303,10]
[364367799,1749082254318,-500.0,0.000303,7]
[364367800,1749082254328,-484.97549774,0.000303,7]
[364367801,1749082254338,-500.0,0.000303,2]
[364367802,1749082254348,-2930.2,0.000303,7]
[364367803,1749082254358,-2930.2,0.000303,7]
[364367804,1749082254369,-2930.2,0.000303,7]
[364367805,1749082254379,-500.0,0.000303,7]
[364367806,1749082254388,-606.62008672,0.000303,7]
[364367807,1749082254399,-493.66,0.000303,2]
[364367808,1749082254409,-500.0,0.000303,7]
[364367809,1749082254418,-500.0,0.000303,7]
[364367810,1749082254428,-500.0,0.000303,7]
[364367811,1749082254438,-500.0,0.000303,2]
[364367812,1749082254448,-500.0,0.000303,2]
[364367813,1749082254458,-500.0,0.000303,2]
[364367814,1749082254467,-1221.59,0.000303,7]
[364367815,1749082254477,-1221.59,0.000303,7]
[364367816,1749082254486,-1221.59,0.000303,7]
[364367817,1749082254496,-1221.59,0.000303,7]
[364367818,1749082254508,-1000.0,0.000303,2]
[364367819,1749082254517,-500.0,0.000303,7]
[364367820,1749082254527,-500.0,0.000303,7]
[364367821,1749082254537,-382.02923201,0.000303,7]
[364367822,1749082254548,-820.0,0.000303,7]
[364367823,1749082254557,-2587.6,0.000303,7]
[364367824,1749082254568,-2587.6,0.000303,7]
[364367825,1749082254578,-2587.6,0.000303,7]
[364367826,1749082254587,-151.0,0.00030301,7]
[364367827,1749082254597,-151.0,0.00030301,7]
[364367828,1749082254608,-151.0,0.00030301,7]
[364367829,1749082254617,-151.0,0.00030301,7]
[364367830,1749082254627,-151.0,0.00030301,7]
[364367831,1749082254638,-151.0,0.00030301,7]
[364367832,1749082254647,-151.0,0.00030301,7]
[364367833,1749082254657,-151.0,0.00030301,7]
[364367834,1749082254667,-151.0,0.00030301,7]
[364367835,1749082255004,-151.0,0.00030301,7]
[364367836,1749082255069,-151.0,0.00030301,7]
[364367837,1749082255079,-480.0,0.00030301,7]
[364367838,1749082255088,-480.0,0.00030301,7]
[364367839,1749082255098,-773.92,0.00030301,7]
[364367840,1749082255108,-480.0,0.00030301,7]
[364367841,1749082255118,-480.0,0.00030301,7]
[364367842,1749082255127,-480.0,0.00030301,7]
[364367843,1749082255137,-480.0,0.00030301,7]
[364367844,1749082255147,-480.0,0.00030301,7]
[364367845,1749082255157,-480.0,0.00030301,7]
[364367846,1749082255167,-480.0,0.00030301,7]
[364367847,1749082255176,-480.0,0.00030301,7]
[364367848,1749082255187,-1047.31,0.00030301,7]
[364367849,1749082255197,-480.0,0.00030301,7]
[364367850,1749082255207,-547.3,0.00030301,7]
[364367851,1749082255217,-864.86,0.00030301,7]
[364367852,1749082255227,-480.0,0.00030301,7]
[364367853,1749082255237,-480.0,0.00030301,7]
[364367854,1749082255247,-613.33,0.00030301,7]
[364367855,1749082255256,-480.0,0.00030301,7]
[364367856,1749082255266,-480.0,0.00030301,7]
[364367857,1749082255275,-480.0,0.00030301,7]
[364367858,1749082255285,-480.0,0.00030301,7]
[364367859,1749082255295,-420.0,0.00030301,7]
[364367860,1749082255305,-480.0,0.00030301,2]
[364367861,1749082255315,-480.0,0.00030301,7]
[364367862,1749082255326,-480.0,0.00030301,7]
[364367863,1749082255336,-480.0,0.00030301,7]
[364367864,1749082255347,-635.53,0.00030301,7]
[364367865,1749082255357,-480.0,0.00030301,7]
[364367866,1749082255367,-480.0,0.00030301,7]
[364367867,1749082255377,-1000.0,0.00030301,7]
[364367868,1749082255387,-480.0,0.00030301,7]
[364367869,1749082255396,-480.0,0.00030301,7]
[364367870,1749082255408,-758.5,0.00030301,7]
[364367871,1749082255418,-480.0,0.00030301,7]
[364367872,1749082255428,-480.0,0.00030301,7]
[364367873,1749082255440,-480.0,0.00030301,7]
[364367874,1749082255451,-480.0,0.00030301,7]
[364367875,1749082255463,-480.0,0.00030301,7]
[364367876,1749082255473,-551.91,0.00030301,7]
[364367877,1749082255484,-480.0,0.00030301,7]
[364367878,1749082255494,-480.0,0.00030301,7]
[364367879,1749082255505,-420.0,0.00030301,7]
[364367880,1749082255515,-480.0,0.00030301,7]
[364367881,1749082255525,-480.0,0.00030301,7]
[364367882,1749082255536,-480.0,0.00030301,7]
[364367883,1749082255547,-613.25,0.00030301,7]
[364367884,1749082255557,-435.66494434,0.00030301,7]
[364367885,1749082255567,-624.08,0.00030301,7]
[364367886,1749082255576,-480.0,0.00030301,7]
[364367887,1749082255587,-2346.099063,0.00030301,7]
[364367888,1749082255597,-480.0,0.00030301,7]
[364367889,1749082255606,-480.0,0.00030301,7]
[364367890,1749082255616,-480.0,0.00030301,7]
[364367891,1749082255626,-480.0,0.00030301,7]
[364367892,1749082255637,-480.0,0.00030301,7]
[364367893,1749082255647,-480.0,0.00030301,7]
[364367894,1749082255658,-480.0,0.00030301,7]
[364367895,1749082255667,-534.14,0.00030301,7]
[364367896,1749082255677,-480.0,0.00030301,7]
[364367897,1749082255687,-420.0,0.00030301,7]
[364367898,1749082255702,-480.0,0.00030301,7]
[364367899,1749082255712,-420.0,0.00030301,7]
[364367900,1749082255721,-480.0,0.00030301,7]
[364367901,1749082255730,-480.0,0.00030301,7]
[364367902,1749082255742,-480.0,0.00030301,7]
[364367903,1749082255756,-480.0,0.00030301,7]
[364367904,1749082255767,-1866.321849,0.00030301,7]
[364367905,1749082255778,-480.0,0.00030301,7]
[364367906,1749082255790,-480.0,0.00030301,7]
[364367907,1749082255800,-480.0,0.00030301,7]
[364367908,1749082255810,-500.0,0.00030301,7]
[364367909,1749082255820,-480.0,0.00030301,7]
[364367910,1749082255830,-480.0,0.00030301,7]
[364367911,1749082255839,-480.0,0.00030301,7]
[364367912,1749082255848,-480.0,0.00030301,7]
[364367913,1749082255858,-661.209621,0.00030301,7]
[364367914,1749082255868,-285.93431769,0.00030301,7]
[364367915,1749082255878,-480.0,0.00030301,7]
[364367916,1749082255888,-480.0,0.00030301,7]
[364367917,1749082255898,-480.0,0.00030301,7]
[364367918,1749082255908,-606.92,0.00030301,7]
[364367919,1749082255918,-480.0,0.00030301,7]
[364367920,1749082255928,-151.62827685,0.00030301,7]
[364367921,1749082255937,-577.4783489,0.00030301,7]
[364367922,1749082255949,-480.0,0.00030301,7]
[364367923,1749082255959,-486.18,0.00030301,7]
[364367924,1749082255968,-480.0,0.00030301,7]
[364367925,1749082255978,-525.74,0.00030301,7]
[364367926,1749082255987,-845.43,0.00030301,7]
[364367927,1749082255997,-480.0,0.00030301,7]
[364367928,1749082256007,-314.16348367,0.00030301,7]
[364367929,1749082256016,-480.0,0.00030301,7]
[364367930,1749082256026,-517.23,0.00030301,7]
[364367931,1749082256036,-377.15999845,0.00030301,7]
[364367932,1749082256045,-605.32920521,0.00030301,7]
[364367933,1749082256055,-480.0,0.00030301,7]
[364367934,1749082256064,-480.0,0.00030301,7]
[364367935,1749082256074,-594.6144703,0.00030301,7]
[364367936,1749082256084,-496.56,0.00030301,7]
[364367937,1749082256094,-480.0,0.00030301,7]
[364367938,1749082256103,-480.0,0.00030301,7]
[364367939,1749082256113,-480.0,0.00030301,7]
[364367940,1749082256123,-983.95,0.00030301,7]
[364367941,1749082256132,-480.0,0.00030301,7]
[364367942,1749082256143,-480.0,0.00030301,7]
[364367943,1749082256153,-480.0,0.00030301,7]
[364367944,1749082256162,-480.0,0.00030301,7]
[364367945,1749082256171,-384.00143452,0.00030301,7]
[364367946,1749082256180,-480.0,0.00030301,7]
[364367947,1749082256191,-636.58,0.00030301,7]
[364367948,1749082256201,-639.58,0.00030301,7]
[364367949,1749082256210,-480.0,0.00030301,7]
[364367950,1749082256220,-480.0,0.00030301,7]
[364367951,1749082256229,-480.0,0.00030301,7]
[364367952,1749082256239,-250.0,0.00030301,7]
[364367953,1749082256249,-555.98,0.00030301,7]
[364367954,1749082256259,-571.51,0.00030301,7]
[364367955,1749082256268,-1053.41,0.00030301,7]
[364367956,1749082256277,-480.0,0.00030301,7]
[364367957,1749082256287,-480.0,0.00030301,7]
[364367958,1749082256296,-480.0,0.00030301,7]
[364367959,1749082256306,-1011.45,0.00030301,7]
[364367960,1749082256316,-673.16,0.00030301,7]
[364367961,1749082256326,-480.0,0.00030301,7]
[364367962,1749082256335,-151.0,0.00030301,7]
[364367963,1749082256345,-480.0,0.00030301,7]
[364367964,1749082256355,-480.0,0.00030301,7]
[364367965,1749082256364,-480.0,0.00030301,7]
[364367966,1749082256374,-862.19,0.00030301,7]
[364367967,1749082256384,-547.47,0.00030301,7]
[364367968,1749082256394,-715.05,0.00030301,7]
[364367969,1749082256403,-507.7,0.00030301,7]
[364367970,1749082256413,-480.0,0.00030301,7]
[364367971,1749082256423,-480.0,0.00030301,7]
[364367972,1749082256433,-480.0,0.00030301,7]
[364367973,1749082256443,-480.0,0.00030301,7]
[364367974,1749082256453,-480.0,0.00030301,7]
[364367975,1749082256463,-480.0,0.00030301,7]
[364367976,1749082256473,-1437.17,0.00030301,7]
[364367977,1749082256482,-480.0,0.00030301,7]
[364367978,1749082256492,-480.0,0.00030301,7]
[364367979,1749082256502,-665.17,0.00030301,7]
[364367980,1749082256512,-480.0,0.00030301,7]
[364367981,1749082256521,-480.0,0.00030301,7]
[364367982,1749082256531,-480.0,0.00030301,7]
[364367983,1749082256540,-480.0,0.00030301,7]
[364367984,1749082256550,-480.0,0.00030301,7]
[364367985,1749082256559,-360.0,0.00030301,7]
[364367986,1749082256570,-1057.27,0.00030301,7]
[364367987,1749082256579,-480.0,0.00030301,7]
[364367988,1749082256589,-480.0,0.00030301,7]
[364367989,1749082256599,-480.0,0.00030301,7]
[364367990,1749082256609,-727.94,0.00030301,7]
[364367991,1749082256619,-480.0,0.00030301,7]
[364367992,1749082256628,-480.0,0.00030301,7]
[364367993,1749082256638,-480.0,0.00030301,7]
[364367994,1749082256648,-480.0,0.00030301,7]
[364367995,1749082256657,-480.0,0.00030301,7]
[364367996,1749082256667,-1031.26,0.00030301,7]
[364367997,1749082256677,-565.36,0.00030301,7]
[364367998,1749082256686,-480.0,0.00030301,7]
[364367999,1749082256697,-480.0,0.00030301,7]
[364368000,1749082256707,-480.0,0.00030301,7]
[364368001,1749082256717,-365.76873927,0.00030301,7]
[364368002,1749082256726,-151.0,0.00030301,7]
[364368003,1749082256736,-548.41,0.00030301,7]
[364368004,1749082256749,-802.51,0.00030301,7]
[364368005,1749082256758,-664.91,0.00030301,7]
[364368006,1749082256768,-480.0,0.00030301,7]
[364368007,1749082256778,-480.0,0.00030301,7]
[364368008,1749082256787,-480.0,0.00030301,7]
[364368009,1749082256797,-480.0,0.00030301,7]
[364368010,1749082256806,-684.49,0.00030301,7]
[364368011,1749082256817,-480.0,0.00030301,7]
[364368012,1749082256828,-480.0,0.00030301,7]
[364368013,1749082256838,-424.37483343,0.00030301,7]
[364368014,1749082256848,-522.12,0.00030301,7]
[364368015,1749082256857,-1054.89,0.00030301,7]
[364368016,1749082256867,-480.0,0.00030301,7]
[364368017,1749082256877,-480.0,0.00030301,7]
[364368018,1749082256886,-480.0,0.00030301,7]
[364368019,1749082256896,-480.0,0.00030301,7]
[364368020,1749082256905,-480.0,0.00030301,7]
[364368021,1749082256915,-610.49,0.00030301,7]
[364368022,1749082256924,-480.0,0.00030301,7]
[364368023,1749082256934,-480.0,0.00030301,7]
[364368024,1749082256944,-480.0,0.00030301,7]
[364368025,1749082256954,-480.0,0.00030301,7]
[364368026,1749082256963,-705.4,0.00030301,7]
[364368027,1749082256973,-480.0,0.00030301,7]
[364368028,1749082256982,-480.0,0.00030301,7]
[364368029,1749082256991,-420.0,0.00030301,7]
[364368030,1749082257001,-480.0,0.00030301,7]
[364368031,1749082257010,-1005.93,0.00030301,7]
[364368032,1749082257019,-480.0,0.00030301,7]
[364368033,1749082257029,-480.0,0.00030301,7]
[364368034,1749082257038,-480.0,0.00030301,7]
[364368035,1749082257047,-480.0,0.00030301,7]
[364368036,1749082257057,-480.0,0.00030301,7]
[364368037,1749082257066,-480.0,0.00030301,7]
[364368038,1749082257076,-480.0,0.00030301,7]
[364368039,1749082257085,-480.0,0.00030301,7]
[364368040,1749082257095,-480.0,0.00030301,7]
[364368041,1749082257104,-480.0,0.00030301,7]
[364368042,1749082257113,-480.0,0.00030301,7]
[364368043,1749082257123,-151.0,0.00030301,7]
[364368044,1749082257137,-556.87,0.00030301,7]
[364368045,1749082257147,-480.0,0.00030301,7]
[364368046,1749082257157,-221.70621887,0.00030301,7]
[364368047,1749082257166,-903.87,0.00030301,7]
[364368048,1749082257176,-480.0,0.00030301,7]
[364368049,1749082257187,-151.0,0.00030301,7]
[364368050,1749082257198,-480.0,0.00030301,7]
[364368051,1749082257208,-480.0,0.00030301,7]
[364368052,1749082257218,-568.07,0.00030301,7]
[364368053,1749082257228,-480.0,0.00030301,7]
[364368054,1749082257238,-480.0,0.00030301,7]
[364368055,1749082257248,-480.0,0.00030301,7]
[364368056,1749082257258,-480.0,0.00030301,7]
[364368057,1749082257268,-480.0,0.00030301,7]
[364368058,1749082257278,-480.0,0.00030301,7]
[364368059,1749082257288,-605.91,0.00030301,7]
[364368060,1749082257297,-337.86992263,0.00030301,7]
[364368061,1749082257307,-648.8,0.00030301,7]
[364368062,1749082257317,-480.0,0.00030301,7]
[364368063,1749082257327,-480.0,0.00030301,7]
[364368064,1749082257338,-1170.1,0.00030301,7]
[364368065,1749082257349,-165.06433324,0.00030301,7]
[364368066,1749082257360,-480.0,0.00030301,7]
[364368067,1749082257370,-581.49,0.00030301,7]
[364368068,1749082257381,-480.0,0.00030301,7]
[364368069,1749082257391,-480.0,0.00030301,7]
[364368070,1749082257402,-480.0,0.00030301,7]
[364368071,1749082257412,-630.29,0.00030301,7]
[364368072,1749082257422,-226.9204692,0.00030301,7]
[364368073,1749082257432,-151.0,0.00030301,7]
[364368074,1749082257442,-151.0,0.00030301,7]
[364368075,1749082257452,-480.0,0.00030301,7]
[364368076,1749082257463,-480.0,0.00030301,7]
[364368077,1749082257473,-480.0,0.00030301,7]
[364368078,1749082257623,-480.0,0.00030301,7]
[364368079,1749082257634,-480.0,0.00030301,7]
[364368080,1749082257644,-151.0,0.00030301,7]
[364368081,1749082257654,-480.0,0.00030301,7]
[364368082,1749082257663,-480.0,0.00030301,7]
[364368083,1749082257673,-480.0,0.00030301,7]
[364368084,1749082257683,-1745.32,0.00030301,7]
[364368085,1749082257693,-480.0,0.00030301,7]
[364368086,1749082257703,-480.0,0.00030301,7]
[364368087,1749082257713,-521.28,0.00030301,7]
[364368088,1749082257723,-748.29,0.00030301,7]
[364368089,1749082257734,-480.0,0.00030301,7]
[364368090,1749082257748,-480.0,0.00030301,7]
[364368091,1749082257758,-480.0,0.00030301,7]
[364368092,1749082257768,-480.0,0.00030301,7]
[364368093,1749082257779,-347.63339469,0.00030301,7]
[364368094,1749082257790,-480.0,0.00030301,7]
[364368095,1749082257799,-480.0,0.00030301,7]
[364368096,1749082257809,-480.0,0.00030301,7]
[364368097,1749082257820,-480.0,0.00030301,7]
[364368098,1749082257834,-480.0,0.00030301,7]
[364368099,1749082257843,-480.0,0.00030301,7]
[364368100,1749082257853,-360.0,0.00030301,7]
[364368101,1749082257863,-480.0,0.00030301,7]
[364368102,1749082257873,-348.09664188,0.00030301,7]
[364368103,1749082257883,-227.13289209,0.00030301,7]
[364368104,1749082257893,-1169.67,0.00030301,7]
[364368105,1749082257902,-538.29617972,0.00030301,7]
[364368106,1749082257912,-1047.96,0.00030301,7]
[364368107,1749082257921,-151.0,0.00030301,7]
[364368108,1749082257931,-407.30045009,0.00030301,7]
[364368109,1749082257940,-480.0,0.00030301,7]
[364368110,1749082257949,-480.0,0.00030301,7]
[364368111,1749082257958,-480.0,0.00030301,7]
[364368112,1749082257968,-480.0,0.00030301,7]
[364368113,1749082257977,-150.0,0.00030301,2]
[364368114,1749082257986,-480.0,0.00030301,7]
[364368115,1749082257996,-480.0,0.00030301,7]
[364368116,1749082258006,-480.0,0.00030301,7]
[364368117,1749082258015,-480.0,0.00030301,7]
[364368118,1749082258024,-480.0,0.00030301,7]
[364368119,1749082258033,-480.0,0.00030301,7]
[364368120,1749082258043,-725.9,0.00030301,7]
[364368121,1749082258053,-480.0,0.00030301,7]
[364368122,1749082258062,-480.0,0.00030301,7]
[364368123,1749082258072,-1710.88,0.00030301,7]
[364368124,1749082258081,-480.0,0.00030301,7]
[364368125,1749082258091,-480.0,0.00030301,7]
[364368126,1749082258100,-151.0,0.00030301,7]
[364368127,1749082258110,-480.0,0.00030301,7]
[364368128,1749082258120,-480.0,0.00030301,7]
[364368129,1749082258129,-480.0,0.00030301,7]
[364368130,1749082258139,-263.24881028,0.00030301,7]
[364368131,1749082258149,-480.0,0.00030301,7]
[364368132,1749082258158,-151.0,0.00030301,7]
[364368133,1749082258168,-480.0,0.00030301,7]
[364368134,1749082258177,-1511.62,0.00030301,7]
[364368135,1749082258187,-345.05424175,0.00030301,7]
[364368136,1749082258197,-480.0,0.00030301,7]
[364368137,1749082258206,-903.39,0.00030301,7]
[364368138,1749082258216,-480.0,0.00030301,7]
[364368139,1749082258226,-500.0,0.00030301,7]
[364368140,1749082258235,-480.0,0.00030301,7]
[364368141,1749082258244,-480.0,0.00030301,7]
[364368142,1749082258253,-150.0,0.00030301,7]
[364368143,1749082258263,-480.0,0.00030301,7]
[364368144,1749082258272,-480.0,0.00030301,7]
[364368145,1749082258282,-805.25,0.00030301,7]